Cogmind - Beta 17.1 @@@ ROGUE MODE // 2026.09.15 @ 15:27:23 Player: 7H-NLC Result: Destroyed by 8G-7V0(R) with Subdweller Shrapnel Launcher Performance ------------- Evolutions (0) 0 Regions Visited (2) 400 Robots Destroyed (27) 135 Value Destroyed (486) 486 Prototype IDs (18) 360 Alien Tech Used (0) 0 Bonus (0) 0 TOTAL SCORE: 1381 Bonus ------- None Cogmind --------- Core Integrity 0/250 Matter 290/300 Energy 100/100 System Corruption 0% Temperature Cool (0) Movement Rolling (215) Ox9 Location -10/Subcaves Parts ------- > --- POWER (1) -------- Subdweller Power Source > --- PROPULSION (2) --- Spiked Treads Wheel > --- UTILITY (2) ------ Huge Storage Unit Makeshift Light Armor Plating > --- WEAPON (2) ------- EM Shotgun EM Shotgun > --- INVENTORY (25) --- Subdweller Power Source Light Treads Light Treads Arachnoskeleton Wheel Subdweller Monowheel Subdweller Monowheel Subdweller Monowheel Large Storage Unit Large Matter Pod (150) Improved Terrain Scanner Seismic Detector Light Armor Plating Cobbler Unit Power Bank EM Shotgun Particle Cannon Subdweller Beam Cannon Slug Cannon Grenade Launcher Datajack Makeshift Spear Peak State ------------ > --- POWER ------------ Subdweller Power Source > --- PROPULSION ------- Spiked Treads Wheel > --- UTILITY ---------- Huge Storage Unit Makeshift Light Armor Plating > --- WEAPON ----------- EM Shotgun EM Shotgun > --- INVENTORY -------- Subdweller Power Source Light Treads Arachnoskeleton Subdweller Monowheel Large Storage Unit Large Matter Pod Improved Terrain Scanner Seismic Detector Cobbler Unit Power Bank EM Shotgun Particle Cannon Subdweller Beam Cannon Slug Cannon Grenade Launcher Makeshift Spear [Rating: 20] Favorites ----------- Power Subdweller Power Source Engine Subdweller Power Source Propulsion Wheel Treads Spiked Treads Wheel Wheel Utility Huge Storage Unit Device Improved Terrain Scanner Storage Huge Storage Unit Processor Improved Targeting Computer Protection Makeshift Light Armor Plating Weapon EM Shotgun Energy Gun EM Shotgun Ballistic Gun Assault Rifle Piercing Weapon Makeshift Spear Build | -11 -10 -10 ------- Run | Yrd Mat Sub Slots Evolved . | . . . Power . | . . . Propulsion . | . . . Utility . | . . . Weapon . | . . . Parts Attached 24 | 7 6 11 Power 2 | 1 . 1 Engine 2 | 1 . 1 Core . | . . . Reactor . | . . . Propulsion 6 | 2 2 2 Treads 3 | . 2 1 Leg . | . . . Wheel 3 | 2 . 1 Hover . | . . . Flight . | . . . Utility 9 | 2 2 5 Device 2 | 1 . 1 Storage 4 | 1 2 1 Processor 1 | . . 1 Hackware . | . . . Protection 2 | . . 2 Artifact . | . . . Weapon 7 | 2 2 3 Energy Gun 5 | 1 2 2 Energy Cannon . | . . . Ballistic Gun 1 | 1 . . Ballistic Cannon . | . . . Launcher . | . . . Special Weapon . | . . . Impact Weapon . | . . . Slashing Weapon . | . . . Piercing Weapon 1 | . . 1 Special Melee Weapon . | . . . Unidentified Prototypes . | . . . Parts Lost 3 | . . 3 Power 1 | . . 1 Propulsion . | . . . Utility 1 | . . 1 Weapon 1 | . . 1 Highest Loss Streak 2 | . . 2 To Critical Strikes . | . . . Average Backups 18 | 1 9 19 Power . | . . . Propulsion 5 | 1 2 5 Utility 6 | . 3 6 Weapon 5 | . 2 6 Tool/Special . | . . . Unused Backups 19 | . . 19 Power 1 | . . 1 Propulsion 6 | . . 6 Utility 4 | . . 4 Weapon 7 | . . 7 Tool/Special 1 | . . 1 Average Slot Usage (%) 99 | . 100 99 Engine 13 | . 14 13 Treads 16 | . 8 17 Wheel 11 | . 19 10 Device 12 | . 14 12 Storage 14 | . 14 14 Energy Gun 26 | . 18 27 Ballistic Gun 1 | . 9 . Peak Build Rating 20 | 7 11 20 Average Rating 15 | 5 8 17 On Entrance 6 | . 7 11 Avg Prop Armor Cover (%) 12 | . . 12 Naked Turns . | . . . Heaviest Build 95 | 15 32 95 Greatest Support 40 | 26 40 40 Greatest Overweight (x) 9 | . . 9 Average Overweight (x) 1 | . . 2 Largest Inventory Capacity 25 | 8 15 25 Average Capacity 20 | 7 10 22 Most Carried 25 | 5 15 25 Average Carried 20 | 1 9 22 Final Capacity 25 | 8 15 25 Final Carried 25 | 5 15 25 Class Distribution -------------------- 100% | Mutant Dominant Class ---------------- Mutant | -10/Materials Mutant | -10/Subcaves Resources | -11 -10 -10 ----------- Run | Yrd Mat Sub Matter Collected 740 | 208 312 220 Remotely . | . . . Salvage Created 882 | 142 446 294 Parts 67 | 9 40 18 Haulers Intercepted 2 | . 2 . Recyclers Shooed . | . . . Parts Field Recycled . | . . . Retrieved Matter . | . . . Parts Self-Destructed 17 | . . 17 Prevented . | . . . Parts Restored . | . . . Kills | -11 -10 -10 ------- Run | Yrd Mat Sub Combat Hostiles Destroyed 19 | . 10 9 Melee 1 | . . 1 Guns 17 | . 10 7 AOE 1 | . . 1 Classes Destroyed 8 | 2 5 1 Worker 1 | . 1 . Builder 1 | . 1 . Tunneler 3 | 2 1 . Hauler 2 | . 2 . Recycler 1 | 1 . . Swarmer 10 | . 6 4 Grunt 4 | . 4 . Subdweller 5 | . . 5 Best Kill Streak 5 | 3 5 2 Combat Bots Only 3 | . 3 2 Max Kills in Single Turn 2 | 1 2 1 Gunslinging 1 | . 1 . Exploded 1 | . . 1 Melee 1 | . . 1 Uniques/NPCs Destroyed . | . . . Combat | -11 -10 -10 -------- Run | Yrd Mat Sub Hostile Shots Fired 75 | . 21 54 Missed 22 | . 6 16 Hits 53 | . 15 38 Projectile 53 | . 15 38 AOE 3 | . . 3 Critical Strikes 1 | . . 1 Damage Taken 986 | . 183 803 Core 258 | . 57 201 Absorbed by Shields . | . . . Core Remaining (%) 100 | 100 . . Volleys Fired 50 | 5 25 20 Largest 2 | 2 2 2 Hottest 90 | 60 60 90 Shots Fired 98 | 10 50 38 Gun 98 | 10 50 38 Cannon . | . . . Launcher . | . . . Special . | . . . Kinetic 30 | 5 25 . Thermal . | . . . Explosive . | . . . Electromagnetic 68 | 5 25 38 Robot Hit Streak 17 | 3 7 17 Robot Miss Streak 3 | 3 2 3 Penetration Max . | . . . Secondary Targets 5 | . 4 1 Max Gunslinging Chain 1 | . 1 1 Shots Hit Robots 73 | 4 35 34 Core Hits 39 | 4 17 18 Critical Kills . | . . . Critical Parts Destroyed . | . . . Critical Strikes . | . . . Melee Attacks 6 | . . 6 Impact . | . . . Slashing . | . . . Piercing 6 | . . 6 Sneak Attacks . | . . . Combat Hostiles . | . . . Follow-up Attacks . | . . . Damage Inflicted 997 | 51 433 513 Guns 872 | 51 433 388 Cannons . | . . . Explosions 43 | . . 43 Melee 82 | . . 82 Ramming . | . . . Kinetic 228 | 26 202 . Thermal 43 | . . 43 Explosive . | . . . Electromagnetic 644 | 25 231 388 Impact . | . . . Slashing . | . . . Piercing 82 | . . 82 Highest Corruption . | . . . Average Corruption . | . . . Corruption Purged . | . . . Corruption Blocked . | . . . Overload Shots . | . . . Overflow Damage 1 | . . 1 Projectiles . | . . . Explosions 1 | . . 1 Melee . | . . . Knockbacks . | . . . Impact . | . . . Kinetic . | . . . Secondary . | . . . Self-Inflicted Damage . | . . . Shots . | . . . Rammed . | . . . Targets Rammed . | . . . Kicked . | . . . Crushed . | . . . Highest Temperature 36 | . 36 . Average Temperature 20 | . 20 . Received Heat Transfer 42 | . 42 . Siege Activations . | . . . Martial Activations . | . . . Shielding Activations . | . . . Robots Disrupted . | . . . Combat Hostiles . | . . . Robots Corrupted . | . . . Combat Hostiles . | . . . Parts Fried 5 | . . 5 Impact Corruptions . | . . . Robots Melted . | . . . Combat Hostiles . | . . . Parts Melted . | . . . Heat Transferred 50 | . . 50 Parts Sabotaged . | . . . Parts Stolen . | . . . Parts Stripped . | . . . Power Chain Reactions 1 | . . 1 Alert | -11 -10 -10 ------- Run | Yrd Mat Sub Maximum Alert Level 1 | . 1 . Low Security (%) 98 | 100 98 . Level 1 1 | . 1 . Level 2 . | . . . Level 3 . | . . . Level 4 . | . . . Level 5 . | . . . High Security . | . . . Max Security . | . . . Peak Influence 204 | 10 204 . Initial . | . . . Average 74 | . 82 . Influence Increases 411 | 15 296 100 Destroy 0b10 Robot/C 280 | . 200 80 Destroy 0b10 Robot/NC 40 | 15 25 . Destroy Leader 54 | . 34 20 Successful Hack 4 | . 4 . Destroy Structure 3 | . 3 . Lose Combat Pursuer 30 | . 30 . Influence Decreases 411 | 15 197 199 Entered New Map 48 | . . 48 Time Decay 353 | 15 197 141 Lost Part 10 | . . 10 Squads Dispatched . | . . . Investigation . | . . . Extermination . | . . . Reinforcement . | . . . Assault . | . . . Garrison . | . . . Intercept . | . . . Searches Triggered . | . . . Construction Impeded . | . . . Haulers Reinforced . | . . . Active Scanning Responses . | . . . Cargo Convoy Interrupts . | . . . Stealth | -11 -10 -10 --------- Run | Yrd Mat Sub Distress Signals 1 | . 1 . Communications Jammed . | . . . Distress Signals . | . . . Times Spotted 29 | . 15 14 Peak Tracking Total 4 | . 4 3 Tactical Retreats 2 | . 1 1 Traps | -11 -10 -10 ------- Run | Yrd Mat Sub Traps Triggered 2 | . 1 1 Indirectly . | . . . Trap Hack Attempts . | . . . Triggered . | . . . Disarmed . | . . . Reprogrammed . | . . . Reused 2 | . . 2 Traps Extracted . | . . . Installed 2 | . . 2 Triggered . | . . . Most Traps Carried 1 | . . 1 Machines | -11 -10 -10 ---------- Run | Yrd Mat Sub Machines Disabled 1 | . . 1 Max in Single Turn 1 | . . 1 Machines Repaired . | . . . Machines Dismantled . | . . . Machines Sabotaged . | . . . Overloaded Fab Kills . | . . . Hacking | -11 -10 -10 --------- Run | Yrd Mat Sub Machines Accessed 5 | . 4 1 Terminals 4 | . 4 . Fabricators . | . . . Repair Stations . | . . . Recycling Units . | . . . Scanalyzers . | . . . Garrison Access . | . . . Total Hacks 11 | . 10 1 Successful 7 | . 6 1 Failed 4 | . 4 . Catastrophic . | . . . Database Lockouts . | . . . Manual . | . . . Terminals 10 | . 10 . Fabricators . | . . . Repair Stations . | . . . Recycling Units . | . . . Scanalyzers . | . . . Garrison Access . | . . . Terminal Hacks 7 | . 6 1 Robot Analysis 2 | . 2 . Prototype ID Bank 2 | . 2 . Registered Components 1 | . 1 . Zone Layout 1 | . 1 . Proto ID Catalog 1 | . . 1 Fabricator Hacks . | . . . Repair Station Hacks . | . . . Recycling Unit Hacks . | . . . Scanalyzer . | . . . Garrison Access Hacks . | . . . Unauthorized Hacks . | . . . Terminals . | . . . Fabricators . | . . . Repair Stations . | . . . Recycling Units . | . . . Scanalyzers . | . . . Garrison Access . | . . . Data Cores Recovered . | . . . Used . | . . . Hacking Detections 3 | . 3 . Full Trace Events . | . . . Feedback Events . | . . . Feedback Blocked . | . . . Robot Schematics Acquired . | . . . Robots Built . | . . . Authchips . | . . . Time . | . . . Total Robot Build Rating . | . . . Part Schematics Acquired . | . . . Parts Built . | . . . Authchips . | . . . Time . | . . . Total Part Build Rating . | . . . Part Studies Acquired . | . . . Parts Repaired . | . . . Time . | . . . Parts Recycled . | . . . Recycled Matter . | . . . Retrieved Matter . | . . . Retrieved Components . | . . . Parts Scanalyzed . | . . . Part Schematics Acquired . | . . . Parts Damaged . | . . . Bothacking | -11 -10 -10 ------------ Run | Yrd Mat Sub Used RIF Installer . | . . . Robots Hacked . | . . . Non-combat . | . . . Combat . | . . . Robot Hacks Applied . | . . . Relay Couplers Released . | . . . Fabnet Peak Effective % . | . . . Robots Rewired . | . . . Allies Hacked . | . . . Hacks Repelled . | . . . Allies | -11 -10 -10 -------- Run | Yrd Mat Sub Total Allies . | . . . Largest Group . | . . . Highest-Rated Group . | . . . Highest-Rated Ally . | . . . Total Orders . | . . . Ally Attacks . | . . . Total Damage . | . . . Kills . | . . . Allies Corrupted . | . . . Allies Melted . | . . . Intel | -11 -10 -10 ------- Run | Yrd Mat Sub Active Infowar (turns) 6021 | 40 788 5193 Terrain 3740 | . . 3740 Seismic 2281 | 40 788 1453 Robot Analysis Total 2 | . 2 . Derelict Logs Recovered 1 | . . 1 Drone Launches . | . . . Drone Recoveries . | . . . Exploration | -11 -10 -10 ------------- Run | Yrd Mat Sub Turns Passed 6585 | 83 788 5714 Spaces Moved 1683 | 62 627 994 Core 6 | 6 . . Treads 790 | . 136 654 Legs . | . . . Wheels 887 | 56 491 340 Hover . | . . . Flight . | . . . Fastest Speed 50 | 50 90 125 Average Speed 147 | 85 105 178 Slowest Speed 260 | 90 160 260 Overloaded Moves . | . . . Propulsion Burnouts . | . . . Robots Hopped . | . . . Potential Cave-ins . | . . . Cave-ins Triggered . | . . . Exploration Rate (%) 46 | 4 84 50 Regions Visited 2 Branch Regions 1 Pre-discovered Areas . | . . . Known Exits Taken . | . . . Unknown Exits Taken 2 | 1 1 . Scrap Searched 6 | . . 6 Spaces Dug . | . . . Terrain Destroyed 3 | . . 3 Melee . | . . . Projectile . | . . . AOE 3 | . . 3 Terrain Rammed . | . . . Walls Destroyed . | . . . Machines Disabled . | . . . Actions | -11 -10 -10 --------- Run | Yrd Mat Sub Total 5672 | 78 707 4887 Wait 3848 | . 31 3817 Move 1681 | 61 626 994 Hop . | . . . Pick Up 37 | 5 13 19 Fast Attach 8 | 7 . 1 Attach 3 | . . 3 Detach 1 | . . 1 Swap 20 | . 6 14 Drop 16 | . 6 10 Fire 50 | 5 25 20 Melee 6 | . . 6 Ram . | . . . Kick . | . . . Crush . | . . . Escape Stasis . | . . . Rewire . | . . . Trap 2 | . . 2 Miscellaneous . | . . . Route ------- -11/Scrapyard -10/Materials (discovered 4 exits: [*Mat x3] / *Sub) -10/Subcaves History --------- Turn | Location | Event 21 | -11/Scrapyard | Discovered new exit (range 15) 84 | -11/Scrapyard | Entered Materials 230 | -10/Materials | Discovered new exit (range 4) 302 | -10/Materials | Build established: Mutant 385 | -10/Materials | Discovered new exit (range 7) 813 | -10/Materials | Discovered new exit (range 6) 823 | -10/Materials | Discovered new exit (range 14) 872 | -10/Materials | Entered Subcaves 911 | -10/Subcaves | Learned location of 1 exit from Materials 955 | -10/Subcaves | A swath of the cavern ceiling suddenly collapsed 1337 | -10/Subcaves | Ambushed by Subdweller buried in earth 2161 | -10/Subcaves | Visited 4L-MR0's lab 2184 | -10/Subcaves | Found Power Bank 2292 | -10/Subcaves | A Subdweller sparked back to life 2292 | -10/Subcaves | A Subdweller sparked back to life 2292 | -10/Subcaves | A Subdweller sparked back to life 2309 | -10/Subcaves | Core integrity fell below 50% 2415 | -10/Subcaves | Found Arachnoskeleton 6577 | -10/Subcaves | Ambushed by Subdwellers from Twisted Machinery 6582 | -10/Subcaves | Core integrity fell below 20% 6586 | -10/Subcaves | Ambushed by Subdweller buried in earth 6586 | -10/Subcaves | Ambushed by Subdweller buried in earth 6586 | -10/Subcaves | Destroyed by 8G-7V0(R) with Subdweller Shrapnel Launcher Last Messages --------------- 02457_ Acquired Datajack. 02475_ Acquired Sub. Monowheel. 02493_ Acquired Lgt. Treads. 02501_ Subatomizers dissect the Riot Gun. 02529_ Acquired Sub. Monowheel. 02563_ Subatomizers dissect the Riot Gun, destroying it. 02783_ Subatomizers dissect the Mining Laser. 02854_ Subatomizers dissect the Mining Laser, destroying it. 03028_ Subatomizers dissect the Wheel. 03165_ Sub. Power Source shoots sparks and powers down. 03272_ S-10 Pest destroyed. 03281_ Corrupted Flight Unit fries itself beyond repair. 03282_ Corrupted Lgt. Assault Rifle fries itself beyond repair. 03621_ Subatomizers dissect the Wheel. 03714_ Subatomizers dissect the Wheel, destroying it. 04566_ Acquired 7 matter. 05683_ Acquired 10 matter. 05693_ Acquired 11 matter. 05695_ Acquired 12 matter. 06438_ Acquired 10 matter. Map ----- +----------------------------------------------------+ | ???????????????????????????????????????????????# | | ???????????????????????????????????????????????# | | ???????????????????????????????????????????????# | | ???????????????????????????????????????????????# | | ???????????????????????????????????????????????# | | ???????????????????????????????????????????????# | | ???????????????????????????????????????????????# | | ???????????????????????????????????????????????# | | ????????????????????????"??????????????????????#% | | ???????????????????????? ??????????????????????## | | ???????????????????????? ##??????????????????### | | ??????????????????????##R #????#?????????????# | | ??????????????????????# R ??? ##????????????# | | ????????????????????### ??? ##???????????#### | | ????????????????????# #?? ##?????????????# | | ???????????????????## ##? #???????????#?# | | ???????????????????# ## ???????#??###?# | | ???????????????????# #??????#?## ##### | | ??????????????????## #????#???# ? ?## # | | ??????????????????# ?????#?#????##??## | | ??????????????????# #???????#??##?? ?#??# | | ??????????????????# ;#????##?#?####???#??# | | ??????????????????# ;#????##??#??## ???### | | ??????????????????# ???# ????#??????##?# | | ?????????#####????####; ; R???#? ? ######?## | | ?????##### ##??????#; @ ???? ?? ?? ?#####?# | | ?????# #####??#; ;;R;#?##? #??##?###### | | ?????# ## ##?# #?#?# #?####### ### | | ?????# #### #???? ###??#### # | | ??????# ### ###?#? ####??## | | ??????# ##??#?#? ###?## | | ??????### ### #####?## ###?# | | ????????# ##?## ###????# #### % | | ????????## ####?## ##??##% ?### | | ?????????##### ## #### ##?### | | ???????????#""" ## ###### | | ??????????##""" ##### ## #?### | | ??????????# """ ###### ##?## ### # | | ??????????### ## ## ##???# ## # | | ????????????##?## #????# | | ????????????????# ####### | | ????????????????# #?### ## | | ????????????????## #??## ## | | ?????????????????# #### ######### | | ?????????????????# ##?###### | | ??????????????? ## ######### | | ????????????? ### ###?##### | | ???????????? ## #?##### ######### | | ??????????? ###### #????#### #?##?### | | ??????????? # #????## ??????# ###?## | +----------------------------------------------------+ Best States ------------- Heat Dissipation 25 Energy Generation 15 Energy Capacity 250 Matter Stores 300 Matter Capacity 300 Sight Range 16 Terrain Scan Range 16 Terrain Scan Density 10 Armor Coverage 150 Evasion (%) 44 Targeting Accuracy 6 Recoil Reduction 2 Item Schematics ----------------- None Robot Schematics ------------------ None Fabricated ------------ Nothing Repaired ---------- Nothing Studied --------- None Alien Tech Used ----------------- None Achievements -------------- None Challenges ------------ None Game ------ Seed SpectralFieldMount Manual? 0 Play Time 00:17:28 Cumulative 499.6 hours Start 2026.09.15 @ 15:10:26 End 2026.09.15 @ 15:27:23 Sessions 1 Manual Loads 0 Difficulty Rogue Special Mode None Game No. 372 Rogue 372 Adventurer 0 Explorer 0 Win Type - Total 10 Types 4/0/4/2/0/0/0/0/0/0 Lore% 64 Gallery% 72 Achievement% 60 Wizard Run 0 Options --------- Layout 2 ASCII 0 Keyboard 1 Movement Vi Keybinds 0 Fullscreen 2 Font 32/Smallcaps Map View 77x44 Zoom Use 0% Tactical HUD 1 Map Filters NONE Filters NONE Steam 1 RUN: 974128a8-0e7b-4ba9-8525-e10887c3db84